bitfinex-derivatives/quotes_ETHF0:USTF0_20250309
["timestamp","ask_amount","ask_price","bid_price","bid_amount"]
[1741511112106,3.2078,2175.9,2175.6,0.6026]
[1741511112107,0.55164,2175.7,2175.6,0.6026]
[1741511112904,3.2078,2175.9,2175.5,0.00690226]
[1741511113109,3.75947,2175.6,2175.5,0.00690226]
[1741511114514,3.75947,2175.6,2175.0,1.15691]
[1741511114515,0.55179,2175.1,2175.0,2.677]
[1741511115202,0.55178,2175.2,2175.0,2.677]
[1741511115406,3.2078,2175.3,2175.0,2.677]
[1741511115615,0.55179,2175.1,2175.0,2.677]
[1741511115806,3.2078,2175.3,2174.9,20.63290226]
[1741511116006,0.55182,2175.0,2174.9,20.63290226]
[1741511116412,0.55181,2175.1,2174.9,20.63290226]
[1741511116916,3.2078,2175.3,2174.9,20.63290226]
[1741511117108,0.55177,2175.2,2175.0,0.6156]
[1741511117614,3.2078,2175.3,2175.0,0.6156]
[1741511117814,0.55178,2175.2,2175.0,0.6156]
[1741511118013,3.2078,2175.3,2175.0,0.6156]
[1741511118211,0.6059,2175.6,2175.0,0.6156]
[1741511118516,3.2078,2175.8,2175.1,4.4776]
[1741511118710,0.55166,2175.7,2175.4,0.55171]
[1741511118911,3.2078,2175.8,2175.5,0.612]
[1741511119116,0.55167,2175.6,2175.5,0.612]
[1741511119318,0.55167,2175.6,2175.2,2.59275]
[1741511119319,0.55173,2175.4,2175.2,2.041]
[1741511119511,0.55173,2175.4,2175.2,0.612]
[1741511119716,0.55171,2175.5,2175.3,2.04]
[1741511120722,0.55172,2175.4,2175.3,2.04]
[1741511120912,3.2078,2175.5,2175.3,2.59174]
[1741511121517,3.2078,2175.5,2175.4,0.55172]
[1741511121917,3.2078,2175.5,2175.3,2.59172]
[1741511122918,3.75949,2175.5,2175.3,2.04]
[1741511123111,0.55173,2175.4,2175.2,0.612]
[1741511123321,0.55173,2175.4,2175.2,2.651]
[1741511123617,0.55174,2175.3,2175.2,2.65]
[1741511124417,0.55174,2175.3,2175.2,0.612]
[1741511124617,0.55179,2175.1,2174.9,20.63290226]
[1741511124822,0.55182,2175.0,2174.9,23.31850226]
[1741511126622,0.55182,2175.0,2174.9,21.27850226]
[1741511126915,0.55182,2175.0,2174.9,20.63290226]
[1741511129227,3.2078,2175.2,2174.9,20.63290226]
[1741511129425,0.55182,2175.0,2174.9,20.63290226]
[1741511129813,0.55181,2175.1,2174.9,21.18474226]
[1741511130016,3.2078,2175.2,2174.9,20.63290226]
[1741511130219,0.55181,2175.1,2174.9,21.18474226]
[1741511130420,3.2078,2175.2,2174.9,20.63290226]
[1741511130617,0.55179,2175.1,2174.9,21.18474226]
[1741511130825,0.55182,2175.0,2174.9,20.63290226]
[1741511131124,3.75958,2175.2,2175.0,0.55181]
[1741511131324,3.75957,2175.2,2175.0,0.55181]
[1741511131524,3.2078,2175.2,2175.1,0.6008]
[1741511131931,3.75957,2175.2,2175.1,0.6008]
[1741511132527,0.55179,2175.1,2174.9,22.67190226]
[1741511132725,0.55182,2175.0,2174.9,22.67190226]
[1741511134027,0.55182,2175.0,2174.9,20.63290226]
[1741511135227,0.55192,2174.6,2174.5,2.6917]
[1741511135728,0.55192,2174.6,2174.5,0.6517]
[1741511137225,3.21470226,2174.8,2174.5,0.6517]
[1741511137532,3.76658226,2174.8,2174.5,1.20363]
[1741511138029,0.5519,2174.7,2174.5,0.6517]
[1741511138532,0.55192,2174.6,2174.5,0.6517]
[1741511140427,0.55195,2174.5,2174.4,0.654]
[1741511141832,3.75975,2174.5,2174.3,0.64520226]
[1741511142030,3.75975,2174.5,2174.3,0.00690226]
[1741511142031,0.55197,2174.4,2174.3,0.00690226]
[1741511142434,1.19587,2174.4,2174.3,0.00690226]
[1741511146437,3.75977,2174.5,2174.3,0.00690226]
[1741511146638,0.55197,2174.4,2174.3,0.00690226]
[1741511150636,0.55202,2174.2,2174.1,20.638]
[1741511150836,3.2078,2174.2,2174.1,20.638]
[1741511151138,3.75982,2174.2,2174.1,20.638]
[1741511151728,0.55207,2174.0,2173.9,0.00690226]
[1741511152035,3.2078,2174.2,2173.9,0.00690226]
[1741511152243,3.75984,2174.2,2173.9,0.00690226]
[1741511152540,3.2078,2174.2,2174.0,0.55205]
[1741511152840,3.2078,2174.2,2173.9,0.00690226]
[1741511153134,3.75983,2174.2,2173.9,0.55898226]
[1741511153340,3.75983,2174.2,2174.0,0.55206]
[1741511153538,3.2078,2174.2,2174.0,0.6296]
[1741511153739,3.2078,2174.2,2173.9,0.00690226]
[1741511153941,0.55207,2174.0,2173.9,0.00690226]
[1741511155442,3.2078,2174.2,2173.9,0.00690226]
[1741511155740,3.75984,2174.2,2173.9,0.00690226]
[1741511155943,0.55206,2174.1,2173.9,0.00690226]
[1741511156234,3.2078,2174.2,2173.9,0.00690226]
[1741511156442,0.55206,2174.1,2173.9,0.00690226]
[1741511156632,3.2078,2174.2,2173.9,0.00690226]
[1741511156633,3.75984,2174.2,2173.9,0.00690226]
[1741511156834,0.55206,2174.1,2173.9,0.00690226]
[1741511158939,3.2078,2174.2,2173.9,0.55898226]
[1741511159242,3.75983,2174.2,2173.9,0.55900226]
[1741511159643,3.2078,2174.2,2173.9,0.00690226]
[1741511159942,0.55207,2174.1,2173.9,0.00690226]
[1741511160342,1.20285,2174.1,2173.9,0.00690226]
[1741511160647,3.75983,2174.2,2173.9,0.55899226]
[1741511160843,0.55206,2174.1,2173.9,0.00690226]
[1741511161538,3.75983,2174.2,2173.9,0.00690226]
[1741511161738,0.55207,2174.1,2173.9,0.00690226]
[1741511161934,3.2078,2174.2,2173.9,0.00690226]
[1741511162135,3.75984,2174.2,2173.9,0.00690226]
[1741511162338,3.2078,2174.2,2173.9,0.00690226]
[1741511162539,3.2078,2174.2,2174.1,0.55205]
[1741511162846,1.15787,2174.4,2174.1,0.55205]
[1741511163340,1.15787,2174.4,2174.2,0.6305]
[1741511164637,3.2078,2174.6,2174.5,0.55195]
[1741511164842,3.2078,2174.6,2174.3,0.55198]
[1741511165038,3.2078,2174.6,2174.2,1.83071]
[1741511165233,3.75974,2174.6,2174.2,1.83071]
[1741511165741,3.2078,2174.6,2174.2,1.2787]
[1741511165942,0.55198,2174.4,2174.2,0.6305]
[1741511166335,0.5995,2174.5,2174.2,0.6305]
[1741511166336,0.552,2174.3,2174.2,0.6305]
[1741511166543,0.55199,2174.4,2174.2,0.6305]
[1741511166744,0.5995,2174.5,2174.2,0.6305]
[1741511166745,0.552,2174.3,2174.2,0.6305]
[1741511167351,3.2078,2174.3,2174.0,21.9129]
[1741511167644,0.55205,2174.1,2174.0,23.2997]
[1741511167845,0.55204,2174.2,2174.0,23.2997]
[1741511168236,3.2078,2174.3,2174.0,23.2997]
[1741511168237,0.55205,2174.1,2174.0,23.2997]
[1741511168640,3.2078,2174.3,2174.0,23.2997]
[1741511168947,0.55205,2174.1,2174.0,23.2997]
[1741511170351,0.55205,2174.1,2174.0,21.2647]
[1741511172143,0.55205,2174.1,2174.0,20.647]
[1741511174340,0.55207,2174.0,2173.9,0.00690226]
[1741511174545,5.03667,2174.0,2173.9,0.00690226]
[1741511177243,5.03667,2174.0,2173.9,2.26e-06]
[1741511179159,9.03667,2174.0,2173.9,2.26e-06]
[1741511179553,0.55222,2173.4,2173.3,0.6305]
[1741511180448,0.55225,2173.3,2173.2,21.3012]
[1741511181053,0.6303,2173.4,2173.1,0.00690226]
[1741511181256,3.76008,2173.2,2173.1,0.00690226]
[1741511184261,3.76008,2173.2,2173.1,2.26e-06]
[1741511185770,0.00690226,2173.5,2173.1,2.26e-06]
[1741511185965,0.55228,2173.2,2173.1,2.26e-06]
[1741511199380,1.15388,2173.2,2173.1,2.26e-06]
[1741511199567,1.20778,2173.2,2173.1,2.26e-06]
[1741511202781,0.55228,2173.2,2173.1,2.26e-06]
[1741511206977,1.18128,2173.2,2173.1,2.26e-06]
[1741511208078,5.18128,2173.2,2173.1,2.26e-06]
[1741511209284,1.18128,2173.2,2173.1,2.26e-06]
[1741511209482,0.55228,2173.2,2173.1,2.26e-06]
[1741511209883,1.18128,2173.2,2173.1,2.26e-06]
[1741511212685,6.74506,2173.3,2173.1,0.55230226]
[1741511212880,0.55228,2173.2,2173.1,2.26e-06]
[1741511213483,0.55228,2173.2,2173.1,0.63530226]
[1741511214575,3.2078,2173.3,2173.1,0.63530226]
[1741511214778,0.00690226,2173.5,2173.1,0.63530226]
[1741511214983,0.55224,2173.4,2173.1,3.21559226]
[1741511215178,0.00690226,2173.5,2173.1,2.66330226]
[1741511215386,0.55224,2173.4,2173.1,3.21559226]
[1741511215682,0.00690226,2173.5,2173.1,2.66330226]
[1741511215878,0.00690226,2173.5,2173.4,0.55222]
[1741511216981,3.2078,2174.0,2173.4,4.0]
[1741511217183,3.75988,2174.0,2173.5,2.6708]
[1741511217386,3.2078,2174.0,2173.5,2.6708]
[1741511217583,0.55213,2173.8,2173.5,3.223]
[1741511217881,0.55213,2173.8,2173.5,2.6708]
[1741511218085,0.65750226,2173.9,2173.5,2.6708]
[1741511218385,0.00690226,2173.9,2173.5,2.6708]
[1741511218585,0.55212,2173.8,2173.5,3.22298]
[1741511218785,0.00690226,2173.9,2173.5,2.6708]
[1741511219281,0.55901226,2173.9,2173.6,0.55216]
[1741511219886,0.00690226,2173.9,2173.6,0.55216]
[1741511220088,0.00690226,2173.9,2173.7,1.15984]
[1741511220287,0.55212,2173.8,2173.7,0.6077]
[1741511222986,2.04066226,2173.9,2173.3,20.659]
[1741511223193,3.76002,2173.4,2173.3,20.659]
[1741511223586,0.55228,2173.2,2173.1,2.26e-06]
[1741511238201,3.2078,2173.4,2173.1,2.26e-06]
[1741511238394,3.2078,2173.7,2173.4,0.55222]
[1741511238592,3.2078,2173.7,2173.5,1.2159]
[1741511239097,3.2078,2173.7,2173.5,1.76808]
[1741511239297,0.00690226,2173.9,2173.5,3.2389]
[1741511239494,0.00690226,2173.9,2173.7,0.55213]
[1741511239797,0.55900226,2173.9,2173.8,0.6495]
[1741511240297,0.00690226,2173.9,2173.8,0.6495]
[1741511240493,0.55900226,2173.9,2173.8,0.6495]
[1741511240890,0.00690226,2173.9,2173.5,3.2389]
[1741511241089,0.00690226,2173.9,2173.7,1.16494]
[1741511241490,0.00690226,2173.9,2173.8,0.55212]
[1741511241692,0.00690226,2173.9,2173.7,1.16493]
[1741511241900,0.00690226,2173.9,2173.7,1.16495]
[1741511242300,0.00690226,2173.9,2173.7,0.6128]
[1741511242703,0.55901226,2173.9,2173.7,0.6128]
[1741511244101,0.00690226,2173.9,2173.7,1.16494]
[1741511244303,0.00690226,2173.9,2173.7,0.6128]
[1741511245102,0.00690226,2173.9,2173.8,0.55212]
[1741511245400,3.2078,2174.1,2174.0,0.55207]
[1741511245707,3.2078,2174.1,2174.0,2.57907]
[1741511246102,4.4422,2174.8,2174.0,6.027]
[1741511246401,3.2078,2174.5,2174.3,0.55198]
[1741511246705,3.2078,2174.5,2174.4,2.028]
[1741511246901,3.75975,2174.5,2174.4,2.028]
[1741511249307,3.2078,2174.5,2174.4,2.57997]
[1741511249806,3.2078,2174.5,2174.4,2.028]
[1741511250008,3.2078,2174.5,2174.4,2.57997]
[1741511250401,3.75975,2174.5,2174.4,2.028]
[1741511250596,3.2078,2174.5,2174.4,2.028]
[1741511250904,3.75975,2174.5,2174.4,2.028]
[1741511251403,4.37625,2174.5,2174.4,2.028]
[1741511252102,3.8243,2174.5,2174.4,2.028]
[1741511252403,0.00690226,2174.6,2174.4,2.028]
[1741511252606,0.00690226,2174.6,2174.5,0.6283]
[1741511253603,0.00690226,2174.6,2174.5,1.82385]
[1741511254598,0.00690226,2174.6,2174.5,1.2719]
[1741511255007,0.55882226,2174.6,2174.5,0.6283]
[1741511255605,0.00690226,2174.6,2174.2,0.65050226]
[1741511255801,0.552,2174.3,2174.2,1.25900226]
[1741511256001,0.00690226,2174.6,2174.3,2.026]
[1741511256002,0.55198,2174.4,2174.3,2.026]
[1741511256711,0.552,2174.3,2174.2,0.00690226]
[1741511256909,1.1917,2174.3,2174.2,0.00690226]
[1741511257210,0.5521,2173.9,2173.8,3.2356]
[1741511257405,0.5521,2173.9,2173.8,2.6365]
[1741511257608,3.2078,2174.0,2173.6,20.654]
[1741511257812,0.55215,2173.7,2173.6,20.654]
[1741511258606,3.2078,2174.0,2173.6,20.654]
[1741511258809,0.55215,2173.7,2173.6,20.654]
[1741511259006,3.2078,2174.0,2173.6,20.654]
[1741511259203,0.55215,2173.7,2173.6,20.654]
[1741511261814,3.2078,2174.0,2173.6,21.20615]
[1741511262012,0.55215,2173.7,2173.6,20.654]
[1741511266907,3.75995,2173.7,2173.6,20.654]
[1741511271910,0.55215,2173.7,2173.6,20.654]
[1741511272216,3.75995,2173.7,2173.6,20.654]
[1741511275216,3.75995,2173.7,2173.4,0.00690226]
[1741511275217,3.2078,2173.7,2173.4,0.00690226]
[1741511275417,0.5522,2173.5,2173.4,0.00690226]
[1741511278715,0.55228,2173.2,2173.1,0.6482]
[1741511289122,3.2078,2173.3,2173.1,0.6482]
[1741511289323,0.00690226,2173.4,2173.3,0.55225]
[1741511290126,0.55211,2173.9,2173.6,0.55217]
[1741511290324,3.2078,2174.0,2173.2,2.985]
[1741511290325,3.2078,2174.0,2173.7,1.2925]
[1741511290525,0.55211,2173.9,2173.7,1.2925]
[1741511290720,0.55212,2173.8,2173.7,1.2925]
[1741511291319,0.55211,2173.9,2173.7,1.2925]
[1741511291519,0.55212,2173.8,2173.7,1.2925]
[1741511291716,0.55211,2173.9,2173.7,1.2925]
[1741511291914,3.21470226,2174.0,2173.7,1.2925]
[1741511291915,0.00690226,2174.0,2173.9,0.5521]
[1741511292119,0.00690226,2174.0,2173.9,2.5841]
[1741511293430,3.2078,2174.3,2173.9,2.032]
[1741511293730,3.2078,2174.3,2174.1,0.55203]
[1741511293922,3.2078,2174.3,2174.2,1.2955]
[1741511295725,0.00690226,2174.5,2174.3,0.552]
[1741511296215,0.00690226,2174.5,2174.2,1.2955]
[1741511296216,0.00690226,2174.5,2174.4,2.032]
[1741511296421,0.00690226,2174.5,2174.4,2.58397]
[1741511296627,0.5519,2174.7,2174.4,2.58397]
[1741511296830,0.55189,2174.8,2174.5,0.55193]
[1741511297227,3.75966,2174.9,2174.4,2.032]
[1741511297429,3.75966,2174.9,2174.6,0.55191]
[1741511297629,3.2078,2174.9,2174.7,0.604]
[1741511297829,0.55187,2174.8,2174.7,0.604]
[1741511298025,0.55187,2174.8,2174.4,2.58396]
[1741511298224,0.55195,2174.5,2174.4,2.6868]
[1741511298424,0.6255,2174.8,2174.4,2.6868]
[1741511299030,0.6255,2174.8,2174.3,3.8589]
[1741511299031,0.55195,2174.5,2174.3,3.8589]
[1741511299235,0.55201,2174.3,2174.2,2.032]
[1741511300026,3.2078,2174.5,2174.2,2.032]
[1741511300230,0.55199,2174.4,2174.2,2.032]
[1741511300738,3.2078,2174.5,2174.2,2.032]
[1741511300939,0.552,2174.3,2174.2,2.032]
[1741511301237,0.55198,2174.4,2174.2,2.032]
[1741511301541,0.55199,2174.4,2174.2,2.032]
[1741511301848,0.55199,2174.4,2174.2,2.58402]
[1741511302039,0.55199,2174.4,2174.2,2.032]
[1741511302642,0.55199,2174.4,2174.2,2.58401]
[1741511302849,0.552,2174.3,2174.2,2.032]
[1741511303150,3.2078,2174.5,2174.0,2.029]
[1741511303342,0.55207,2174.1,2174.0,2.029]
[1741511303744,0.55207,2174.1,2173.9,20.655]
[1741511303937,0.55207,2174.1,2173.9,22.685]
[1741511304144,3.2078,2174.2,2173.9,22.685]
[1741511304351,3.75984,2174.2,2174.0,0.55206]
[1741511304549,3.2078,2174.2,2173.9,22.685]
[1741511304752,3.2078,2174.2,2174.0,0.55207]
[1741511304939,3.2078,2174.2,2173.9,23.23708]
[1741511304940,3.75983,2174.2,2173.9,23.23708]
[1741511305551,3.75983,2174.2,2174.0,0.55206]
[1741511305740,3.75983,2174.2,2173.9,23.23709]
[1741511306450,0.55205,2174.1,2173.9,23.23709]
[1741511307048,3.2078,2174.2,2173.9,22.685]
[1741511307251,0.55198,2174.4,2174.1,0.55205]
[1741511307553,3.8289,2174.6,2174.2,0.5958]
[1741511307757,4.38083,2174.6,2174.3,1.2905]
[1741511307946,4.38083,2174.6,2174.3,1.84248]
[1741511309056,3.8289,2174.6,2174.4,2.029]
[1741511309354,3.2078,2174.6,2174.5,0.55195]
[1741511309548,4.4367,2174.9,2174.5,0.55195]
[1741511309743,3.2078,2174.6,2174.4,2.029]
[1741511309948,1.2289,2174.9,2174.4,2.029]
[1741511310256,0.55188,2174.8,2174.5,0.55193]
[1741511310756,1.78076,2174.9,2174.6,0.5519]
[1741511311055,1.17296,2174.9,2174.6,0.5519]
[1741511311354,0.55188,2174.8,2174.4,2.029]
[1741511311556,1.17296,2174.9,2174.6,0.5519]
[1741511311752,0.55187,2174.8,2174.6,0.5519]
[1741511311952,0.6211,2174.9,2174.4,2.029]
[1741511312250,0.55189,2174.8,2174.5,0.55194]
[1741511312455,0.6211,2174.9,2174.6,0.55191]
[1741511312754,0.55188,2174.8,2174.5,0.55192]
[1741511312950,0.6211,2174.9,2174.5,0.55192]
[1741511313348,0.55189,2174.7,2174.5,0.55192]
[1741511313550,0.6211,2174.9,2174.4,2.029]
[1741511313754,0.55195,2174.5,2174.4,2.029]
[1741511314057,0.552,2174.3,2174.2,2.6238]
[1741511314952,0.552,2174.3,2174.2,2.028]
[1741511315153,0.552,2174.3,2174.0,3.19586]
[1741511315348,3.8579,2174.4,2174.0,2.6438]
[1741511315553,0.55203,2174.2,2174.0,2.6438]
[1741511315955,0.55205,2174.1,2174.0,2.6428]
[1741511316152,0.55205,2174.1,2174.0,2.027]
[1741511316348,3.8579,2174.4,2174.0,2.027]
[1741511316551,3.8579,2174.4,2174.1,0.55204]
[1741511316552,4.40988,2174.4,2174.1,0.55204]
[1741511316756,0.552,2174.3,2174.0,2.57906]
[1741511317158,3.8579,2174.4,2174.0,2.027]
[1741511317363,3.8579,2174.4,2174.2,0.55201]
[1741511318458,3.8579,2174.4,2174.3,0.552]
[1741511318657,3.2078,2174.4,2174.3,0.552]
[1741511318858,3.2078,2174.4,2174.2,0.55201]
[1741511321057,3.2078,2174.4,2174.0,2.027]
[1741511321259,3.2078,2174.4,2174.3,0.552]
[1741511321755,3.2078,2174.4,2174.2,0.552]
[1741511322166,3.75977,2174.4,2174.1,0.55203]
[1741511322361,0.55197,2174.4,2174.1,0.55203]
[1741511322767,0.5947,2174.6,2174.0,2.027]
[1741511322968,0.55201,2174.3,2174.1,2.023]
[1741511323162,1.20582,2174.2,2174.1,2.023]
[1741511323868,0.55207,2174.1,2173.9,23.2777]
[1741511324069,0.55207,2174.1,2173.9,23.82979]
[1741511324761,0.55207,2174.0,2173.9,20.655]
[1741511327171,1.2486,2174.2,2173.9,20.655]
[1741511327371,0.55207,2174.1,2173.9,20.655]
[1741511328465,3.2078,2174.3,2173.9,20.655]
[1741511328671,3.75973,2174.6,2174.0,3.2078]
[1741511328872,3.2078,2174.6,2174.2,0.55201]
[1741511329171,0.55195,2174.5,2174.3,2.033]
[1741511329571,3.75974,2174.6,2174.3,2.033]
[1741511330172,3.75974,2174.6,2174.3,2.58499]
[1741511330367,3.75974,2174.6,2174.3,2.033]
[1741511330670,3.75974,2174.6,2174.3,2.58499]
[1741511331464,3.2078,2174.6,2174.4,0.55197]
[1741511331767,3.2078,2174.6,2174.4,0.55196]
[1741511331963,3.75972,2174.6,2174.3,2.58498]
[1741511332174,3.2078,2174.6,2174.3,2.033]
[1741511332369,3.2078,2174.6,2174.5,0.55195]
[1741511332871,3.2078,2174.6,2174.3,2.033]
[1741511333073,3.2078,2174.6,2174.3,2.58498]
[1741511333572,3.2078,2174.6,2174.4,0.55197]
[1741511334562,3.2078,2174.6,2174.4,0.55195]
[1741511335176,3.2078,2174.6,2174.5,0.55195]
[1741511335976,3.2078,2174.6,2174.4,0.55195]
[1741511337178,3.2078,2174.6,2174.3,2.033]
[1741511337477,3.2078,2174.6,2174.5,0.55195]
[1741511337774,0.6442,2174.9,2174.3,5.2408]
[1741511337971,0.6442,2174.9,2174.7,0.55188]
[1741511340068,0.6442,2174.9,2174.8,0.55187]
[1741511340372,0.6442,2174.9,2174.7,2.57788]
[1741511340573,0.55187,2174.8,2174.7,2.026]
[1741511341080,0.6442,2174.9,2174.7,2.026]
[1741511341269,0.55187,2174.8,2174.7,2.026]
[1741511341676,1.19606,2174.9,2174.7,2.026]
[1741511341871,0.55187,2174.8,2174.7,2.026]
[1741511342984,0.55187,2174.8,2174.6,0.00690226]
[1741511342985,0.55189,2174.7,2174.6,0.00690226]
[1741511343291,3.75969,2174.7,2174.6,0.00690226]
[1741511343783,0.552,2174.3,2174.1,0.55204]
[1741511343981,0.6381,2174.2,2174.1,0.55204]
[1741511344877,0.6381,2174.2,2174.0,5.2328]
[1741511345081,0.6381,2174.2,2174.0,5.78485]
[1741511345283,0.6381,2174.2,2174.1,0.55205]
[1741511345484,0.6381,2174.2,2174.0,2.57706]
[1741511345687,1.19012,2174.2,2174.0,2.57706]
[1741511346079,0.55207,2174.0,2173.9,20.66190226]
[1741511346282,0.55207,2174.0,2173.9,22.68590226]
[1741511346783,0.55207,2174.0,2173.9,20.66190226]
[1741511348384,0.55207,2174.0,2173.9,0.00690226]
[1741511348689,4.0,2174.0,2173.3,3.76003]
[1741511348986,0.5522,2173.5,2173.4,2.027]
[1741511350582,0.55222,2173.4,2173.3,3.2078]
[1741511357694,0.55222,2173.4,2173.3,3.8219]
[1741511359197,3.21470226,2173.7,2173.3,3.8219]
[1741511359493,0.55222,2173.4,2173.3,3.8219]
[1741511362296,0.6242,2173.6,2173.3,3.8219]
[1741511362790,0.55222,2173.4,2173.3,3.8219]
[1741511363196,3.21470226,2173.7,2173.6,0.55217]
[1741511363398,3.21470226,2173.7,2173.6,2.57217]
[1741511364893,3.21470226,2173.7,2173.6,2.02]
[1741511365098,3.21470226,2173.7,2173.6,2.57217]
[1741511366194,0.00690226,2173.7,2173.6,2.57217]
[1741511367294,3.2078,2174.0,2173.6,6.02]
[1741511367495,3.2078,2174.0,2173.9,0.5521]
[1741511368490,3.2078,2174.0,2173.8,0.6271]
[1741511368699,3.75988,2174.0,2173.8,0.6271]
[1741511369793,3.75989,2174.0,2173.8,0.6271]
[1741511370096,0.55211,2173.9,2173.6,2.57217]
[1741511370702,3.2078,2174.0,2173.8,0.55211]
[1741511371094,3.2078,2174.0,2173.9,1.1963]
[1741511371596,3.2078,2174.0,2173.9,1.7484]
[1741511371800,3.2078,2174.0,2173.9,1.1963]
[1741511373202,3.2078,2174.0,2173.9,1.7484]
[1741511375501,0.00690226,2174.2,2174.1,0.55205]
[1741511375705,0.00690226,2174.2,2174.1,2.56705]
[1741511378800,0.6166,2174.6,2174.4,0.55195]
[1741511379006,0.6166,2174.6,2174.5,0.635]
[1741511379801,3.2078,2174.7,2174.5,3.19995]
[1741511380201,3.2078,2174.7,2174.5,2.648]
[1741511380603,3.7597,2174.7,2174.5,2.648]
[1741511380905,3.2078,2174.7,2174.5,2.648]
[1741511381708,3.2078,2174.7,2174.5,3.19994]
[1741511381907,3.2078,2174.7,2174.6,0.55192]
[1741511382207,3.2078,2174.7,2174.5,3.19994]
[1741511384809,3.2078,2174.7,2174.5,2.648]
[1741511385813,3.2078,2174.7,2174.3,0.00690226]
[1741511386112,3.75971,2174.7,2174.4,2.56197]
[1741511386713,3.2078,2174.7,2174.4,2.56197]
[1741511387610,3.2078,2174.7,2174.4,2.01]
[1741511387922,3.2078,2174.7,2174.5,0.55194]
[1741511388509,3.2078,2174.7,2174.6,0.55192]
[1741511388907,0.00690226,2174.8,2174.4,2.6193]
[1741511389114,0.00690226,2174.8,2174.7,0.55189]
[1741511389713,0.00690226,2174.8,2174.4,2.6193]
[1741511390115,0.00690226,2174.8,2174.7,0.55189]
[1741511390914,0.00690226,2174.8,2174.6,0.5519]
[1741511391116,0.55877226,2174.8,2174.5,0.55193]
[1741511392418,0.00690226,2174.8,2174.6,0.55191]
[1741511392616,0.55877226,2174.8,2174.4,2.6193]
[1741511392818,0.55877226,2174.8,2174.5,0.55193]
[1741511393712,0.55878226,2174.8,2174.5,0.55193]
[1741511394010,0.55878226,2174.8,2174.5,0.55195]
[1741511394614,0.55878226,2174.8,2174.4,2.6193]
[1741511394817,0.55878226,2174.8,2174.6,0.55192]
[1741511395018,3.2078,2174.7,2174.6,0.55192]
[1741511399512,3.2078,2174.7,2174.4,2.6193]
[1741511399720,0.55193,2174.6,2174.4,2.01]
[1741511399925,0.5965,2174.5,2174.4,2.56197]
[1741511400213,3.2078,2174.7,2174.5,0.55194]
[1741511400520,3.8043,2174.7,2174.5,0.55194]
[1741511400915,4.3562,2174.7,2174.4,2.01]
[1741511401220,4.3562,2174.7,2174.5,0.55194]
[1741511401611,3.8043,2174.7,2174.5,0.55194]
[1741511402522,4.3562,2174.7,2174.5,0.55194]
[1741511402818,3.8043,2174.7,2174.5,0.55194]
[1741511403811,0.00690226,2174.8,2174.5,2.985]
[1741511404013,3.2078,2175.0,2174.9,0.55184]
[1741511404210,3.2078,2175.0,2174.9,2.55384]
[1741511406419,3.75962,2175.0,2174.9,2.002]
[1741511406625,0.55189,2174.7,2174.5,2.985]
[1741511406828,0.55189,2174.7,2174.5,2.004]
[1741511407019,1.8357,2174.9,2174.5,2.004]
[1741511407324,3.75971,2174.7,2174.5,2.004]
[1741511407526,0.55192,2174.6,2174.5,2.004]
[1741511407718,3.75971,2174.7,2174.5,2.004]
[1741511408418,3.2078,2174.7,2174.5,2.004]
[1741511408624,3.2078,2174.7,2174.6,0.55192]
[1741511408824,3.2078,2174.7,2174.6,1.84142]
[1741511409026,3.2078,2174.7,2174.6,2.46262]
[1741511409624,3.21470226,2175.2,2175.1,0.55179]
[1741511409918,3.21470226,2175.2,2174.6,8.65542]
[1741511409919,3.21470226,2175.2,2174.9,2.55883]
[1741511410322,3.21470226,2175.2,2175.0,0.5996]
[1741511410926,3.76649226,2175.2,2175.0,0.5996]
[1741511411428,3.76648226,2175.2,2175.0,0.5996]
[1741511411830,3.21470226,2175.2,2174.9,2.007]
[1741511412127,0.55182,2175.0,2174.9,2.007]
[1741511413125,1.14481,2175.1,2174.9,2.007]
[1741511413325,1.1448,2175.1,2174.9,2.007]
[1741511413532,3.21470226,2175.2,2174.9,2.007]
[1741511413720,0.55181,2175.1,2174.9,2.007]
[1741511413919,3.86620226,2175.2,2174.9,2.007]
[1741511414124,4.41798226,2175.2,2174.9,2.55884]
[1741511415633,3.86620226,2175.2,2174.9,2.007]
[1741511415835,4.41799226,2175.2,2174.9,2.55884]
[1741511416130,4.41799226,2175.2,2174.9,2.007]
[1741511416327,3.86620226,2175.2,2174.9,2.007]
[1741511416527,0.55181,2175.1,2174.9,2.007]
[1741511418132,0.55181,2175.1,2174.9,2.55883]
[1741511418329,0.55181,2175.1,2174.9,2.007]
[1741511418532,0.55181,2175.1,2174.9,2.55884]
[1741511418930,0.55181,2175.1,2174.9,2.007]
[1741511419136,0.55179,2175.1,2174.9,2.007]
[1741511419635,0.55179,2175.1,2174.9,2.55883]
[1741511420028,3.86620226,2175.2,2174.9,2.007]
[1741511420428,4.41797226,2175.2,2175.0,1.1956]
[1741511420938,4.41797226,2175.2,2175.0,0.6438]
[1741511421232,0.55179,2175.1,2175.0,0.6438]
[1741511421437,3.86620226,2175.2,2174.9,2.007]
[1741511421640,0.55182,2175.0,2174.9,2.007]
[1741511421834,3.86620226,2175.2,2174.9,2.007]
[1741511422036,3.21470226,2175.2,2174.9,2.007]
[1741511422239,3.21470226,2175.2,2175.0,1.83201]
[1741511422436,3.76647226,2175.2,2175.0,1.2802]
[1741511422735,3.76647226,2175.2,2175.0,0.6334]
[1741511422933,0.55179,2175.1,2174.9,2.55884]
[1741511423334,4.40848226,2175.2,2174.9,2.55884]
[1741511423529,4.40848226,2175.2,2174.9,2.55883]